bitfinex-derivatives/quotes_BTCF0:USTF0_20241208
["timestamp","ask_amount","ask_price","bid_price","bid_amount"]
[1733649477164,0.53359685,99283.0,99282.0,0.07635156]
[1733649478165,0.38343322,99283.0,99282.0,0.07635156]
[1733649478464,0.53359685,99283.0,99282.0,0.07635156]
[1733649478661,0.53359685,99283.0,99282.0,0.07635168]
[1733649479469,0.43238695,99283.0,99282.0,0.07635168]
[1733649480569,0.61240071,99283.0,99282.0,0.07635168]
[1733649481476,0.61240071,99283.0,99282.0,0.049296]
[1733649481673,0.61240071,99283.0,99282.0,0.07635071]
[1733649481872,0.56710571,99283.0,99282.0,0.07635071]
[1733649482077,0.38709195,99283.0,99282.0,0.07635071]
[1733649484371,0.38709195,99283.0,99282.0,0.06817006]
[1733649484678,0.38709195,99283.0,99282.0,0.0763532]
[1733649486068,0.04895373,99283.0,99282.0,0.0763532]
[1733649486375,0.12023092,99284.0,99282.0,0.1865174]
[1733649486574,0.12023092,99296.0,99295.0,0.04529]
[1733649486773,0.12023092,99297.0,99295.0,0.27802225]
[1733649486981,0.12023092,99297.0,99296.0,0.32331125]
[1733649487176,0.12023092,99300.0,99296.0,0.0270572]
[1733649487375,0.12023092,99300.0,99292.0,0.3608]
[1733649487376,0.12023092,99305.0,99304.0,0.045285]
[1733649487585,0.12023092,99305.0,99304.0,0.0723422]
[1733649487771,0.12023092,99308.0,99304.0,0.3878572]
[1733649487971,0.12023092,99308.0,99307.0,0.22629011]
[1733649488173,0.12017303,99308.0,99307.0,0.25334731]
[1733649488372,0.3608,99314.0,99307.0,0.0270572]
[1733649488575,0.12007412,99311.0,99308.0,0.0270572]
[1733649488783,0.12007412,99311.0,99309.0,0.0270572]
[1733649488983,0.12007412,99311.0,99310.0,0.0270572]
[1733649489172,0.12007412,99313.0,99312.0,0.045282]
[1733649489371,0.12007412,99313.0,99312.0,0.0723392]
[1733649489881,0.045281,99313.0,99312.0,0.01447786]
[1733649490086,0.077081,99313.0,99312.0,0.01447786]
[1733649490783,0.086081,99313.0,99312.0,0.06075986]
[1733649490984,0.086081,99313.0,99312.0,0.0607565]
[1733649491278,0.086081,99313.0,99312.0,0.046282]
[1733649491685,0.086081,99313.0,99312.0,0.06075636]
[1733649491877,0.090081,99313.0,99312.0,0.06075636]
[1733649492679,0.21002378,99313.0,99312.0,0.06075636]
[1733649493085,0.090081,99313.0,99312.0,0.06075636]
[1733649493678,0.21002378,99313.0,99312.0,0.06075636]
[1733649494181,0.090081,99313.0,99312.0,0.01547436]
[1733649495181,0.090081,99313.0,99312.0,0.001]
[1733649496075,0.090081,99313.0,99312.0,0.01547525]
[1733649497082,0.24038785,99313.0,99312.0,0.01547525]
[1733649497979,0.25210292,99313.0,99312.0,0.01547525]
[1733649498177,0.25210292,99313.0,99312.0,0.01547553]
[1733649498887,0.10179607,99313.0,99294.0,0.04529]
[1733649499092,0.045289,99296.0,99295.0,0.01881245]
[1733649499390,0.406089,99296.0,99295.0,0.00629393]
[1733649500084,0.436989,99296.0,99295.0,0.00629393]
[1733649500575,0.439989,99296.0,99295.0,0.00629393]
[1733649500777,0.58986017,99296.0,99295.0,0.00629393]
[1733649501079,0.59086017,99296.0,99295.0,0.00629393]
[1733649501382,0.04529,99293.0,99292.0,0.00151056]
[1733649501585,0.04529,99293.0,99267.0,0.18112876]
[1733649501586,0.045296,99280.0,99279.0,0.00022774]
[1733649501883,0.406096,99280.0,99279.0,0.0125126]
[1733649502082,0.406096,99280.0,99279.0,0.01274034]
[1733649502290,0.406096,99280.0,99278.0,0.85809]
[1733649502487,0.406096,99280.0,99278.0,0.85757]
[1733649502488,0.0322,99279.0,99278.0,0.85757]
[1733649502994,0.15207409,99279.0,99278.0,0.87030748]
[1733649503183,0.0322,99279.0,99278.0,0.85757]
[1733649503582,0.0322,99279.0,99278.0,0.86157]
[1733649503776,0.0322,99279.0,99278.0,0.86457]
[1733649503992,0.0322,99279.0,99278.0,0.86057]
[1733649504188,0.406096,99280.0,99278.0,0.86057]
[1733649504189,0.406096,99280.0,99278.0,0.86457]
[1733649504786,0.52594362,99280.0,99279.0,0.00022774]
[1733649505882,0.406096,99280.0,99279.0,0.0125086]
[1733649506182,0.406096,99280.0,99279.0,0.01273639]
[1733649506383,0.406096,99280.0,99279.0,0.01273638]
[1733649506583,0.406096,99280.0,99279.0,0.06103338]
[1733649506983,0.406096,99280.0,99279.0,0.06932865]
[1733649507190,0.3608,99280.0,99279.0,0.06910087]
[1733649507991,0.3608,99280.0,99279.0,0.06910282]
[1733649508189,0.3608,99280.0,99279.0,0.02380582]
[1733649509090,0.3608,99280.0,99279.0,0.02884195]
[1733649510890,0.3608,99280.0,99279.0,0.03198934]
[1733649512093,0.3608,99280.0,99279.0,0.0319881]
[1733649513783,0.3608,99280.0,99279.0,0.01947879]
[1733649514087,0.7216,99280.0,99279.0,0.01947879]
[1733649514496,0.766896,99280.0,99279.0,0.01947879]
[1733649515196,0.766896,99280.0,99279.0,0.01318352]
[1733649515699,0.7216,99280.0,99278.0,0.82137352]
[1733649515884,0.045297,99279.0,99278.0,0.34471052]
[1733649516087,0.0453,99273.0,99272.0,0.18100611]
[1733649517090,0.0463,99273.0,99272.0,0.18700611]
[1733649517789,0.0463,99273.0,99272.0,0.006]
[1733649519293,0.0463,99273.0,99272.0,0.009]
[1733649520696,0.16599742,99273.0,99272.0,0.009]
[1733649521197,0.0463,99273.0,99272.0,0.009]
[1733649521496,0.16600252,99273.0,99272.0,0.009]
[1733649521696,0.16600252,99273.0,99272.0,0.00929636]
[1733649521697,0.0473,99273.0,99272.0,0.00929636]
[1733649521900,0.0473,99273.0,99272.0,0.00629636]
[1733649521901,0.13710164,99273.0,99272.0,0.00629636]
[1733649522197,0.13710164,99273.0,99272.0,0.05159636]
[1733649522198,0.0473,99273.0,99272.0,0.05159636]
[1733649522399,0.0473,99273.0,99272.0,0.05159598]
[1733649522695,0.0473,99273.0,99272.0,0.06410049]
[1733649523300,0.045297,99279.0,99278.0,0.045297]
[1733649523491,0.045297,99279.0,99278.0,0.06409749]
[1733649524800,0.051297,99279.0,99278.0,0.06409749]
[1733649525803,0.051297,99279.0,99278.0,0.06914252]
[1733649527409,0.051297,99279.0,99278.0,0.02384552]
[1733649527800,0.051297,99279.0,99278.0,0.02699304]
[1733649528409,0.17099952,99279.0,99278.0,0.02699304]
[1733649529211,0.006,99279.0,99269.0,0.0307]
[1733649529508,0.16534884,99278.0,99277.0,0.045298]
[1733649529710,0.16534884,99278.0,99277.0,0.07230163]
[1733649530308,0.16534884,99278.0,99277.0,0.02700363]
[1733649531305,0.045298,99278.0,99277.0,0.02700363]
[1733649531608,0.049298,99278.0,99277.0,0.02700363]
[1733649531915,0.17036329,99278.0,99277.0,0.02700363]
[1733649532107,0.050298,99278.0,99277.0,0.0144787]
[1733649533012,0.050298,99278.0,99277.0,0.01447997]
[1733649533307,0.19994258,99278.0,99277.0,0.01447997]
[1733649533511,0.050298,99278.0,99277.0,0.01447997]
[1733649533704,0.20037612,99278.0,99277.0,0.01447997]
[1733649536315,0.20037612,99278.0,99277.0,0.01448029]
[1733649536812,0.09926091,99278.0,99277.0,0.01448029]
[1733649537205,0.050298,99278.0,99277.0,0.01448029]
[1733649537604,0.09926023,99278.0,99277.0,0.01448029]
[1733649538212,0.0992597,99278.0,99277.0,0.01448029]
[1733649538509,0.050298,99278.0,99277.0,0.01448029]
[1733649538712,0.09925905,99278.0,99277.0,0.01448029]
[1733649539018,0.050298,99278.0,99277.0,0.01448029]
[1733649541521,0.72228,99280.0,99278.0,0.045297]
[1733649541706,0.72228,99280.0,99279.0,0.02699437]
[1733649541907,0.7216,99280.0,99279.0,0.02699437]
[1733649542107,0.45093458,99280.0,99279.0,0.02699437]
[1733649542308,0.3608,99280.0,99279.0,0.02699437]
[1733649542505,0.3108,99280.0,99279.0,0.02699437]
[1733649542911,0.28813894,99280.0,99279.0,0.02699437]
[1733649543915,0.28913894,99280.0,99279.0,0.02699437]
[1733649544116,0.29213894,99280.0,99279.0,0.02699437]
[1733649545110,0.28913894,99280.0,99279.0,0.02699437]
[1733649545413,0.29313894,99280.0,99279.0,0.02699189]
[1733649545916,0.29313894,99280.0,99279.0,0.05869189]
[1733649546319,0.29313894,99280.0,99279.0,0.09129189]
[1733649546623,0.29313894,99280.0,99279.0,0.13658889]
[1733649546915,0.29313894,99280.0,99279.0,0.10488889]
[1733649547321,0.38327352,99280.0,99279.0,0.10488889]
[1733649547713,0.33843494,99280.0,99279.0,0.10488889]
[1733649548210,0.42856193,99280.0,99279.0,0.10488889]
[1733649549414,0.33843494,99280.0,99279.0,0.02699189]
[1733649549715,0.45861034,99280.0,99279.0,0.02699189]
[1733649550021,0.33843494,99280.0,99279.0,0.02699189]
[1733649551222,0.45861034,99280.0,99279.0,0.02699189]
[1733649551427,0.33843494,99280.0,99279.0,0.02699189]
[1733649552228,0.33843494,99280.0,99279.0,0.02699419]
[1733649552411,0.33843494,99280.0,99279.0,0.0597755]
[1733649552607,0.33843494,99280.0,99279.0,0.07229102]
[1733649554127,0.33843494,99280.0,99279.0,0.02699402]
[1733649554519,0.4885907,99280.0,99279.0,0.02699402]
[1733649555016,0.4885907,99280.0,99279.0,0.0144785]
[1733649555622,0.4885907,99280.0,99279.0,0.02699364]
[1733649556525,0.005,99280.0,99279.0,0.43309064]
[1733649556715,0.12527057,99280.0,99279.0,0.43309064]
[1733649556915,0.09520957,99280.0,99279.0,0.43309064]
[1733649557126,0.005,99280.0,99279.0,0.61409675]
[1733649557429,0.005,99280.0,99279.0,0.43309064]
[1733649558124,0.12027057,99285.0,99284.0,0.045295]
[1733649558330,0.12027057,99285.0,99284.0,0.07228864]
[1733649558925,0.12027057,99285.0,99284.0,0.045295]
[1733649559126,0.12027057,99285.0,99284.0,0.07228132]
[1733649559825,0.12227057,99285.0,99284.0,0.07228132]
[1733649560329,0.12827057,99285.0,99284.0,0.07228132]
[1733649561329,0.008,99285.0,99284.0,0.07228132]
[1733649562122,0.008,99285.0,99284.0,0.25328743]
[1733649562325,0.008,99285.0,99284.0,0.07227658]
[1733649563831,0.008,99285.0,99284.0,0.25310686]
[1733649564224,0.12027057,99296.0,99284.0,0.09311037]
[1733649564431,0.3608,99297.0,99296.0,0.045289]
[1733649564733,0.0063,99300.0,99296.0,0.38778158]
[1733649564938,0.0063,99300.0,99299.0,0.045288]
[1733649565135,0.0063,99300.0,99299.0,0.07226958]
[1733649567032,0.0093,99300.0,99299.0,0.07326958]
[1733649567234,0.0143,99300.0,99299.0,0.07326958]
[1733649568034,0.0143,99300.0,99299.0,0.07326477]
[1733649570933,0.0143,99300.0,99299.0,0.08454595]
[1733649572938,0.12027057,99313.0,99312.0,0.045282]
[1733649573141,0.12027057,99313.0,99312.0,0.0597559]
[1733649573942,0.12027057,99313.0,99312.0,0.0687559]
[1733649574345,0.12027057,99314.0,99312.0,0.009]
[1733649574547,0.12027057,99314.0,99313.0,0.0597549]
[1733649574745,0.3608,99316.0,99313.0,0.0144739]
[1733649575043,0.3608,99316.0,99315.0,0.04528]
[1733649575239,0.3608,99316.0,99315.0,0.0597539]
[1733649576237,0.3608,99316.0,99315.0,0.05975376]
[1733649576644,0.3608,99316.0,99315.0,0.06875376]
[1733649577038,0.40973869,99316.0,99315.0,0.06875376]
[1733649577733,0.40973869,99316.0,99315.0,0.07775376]
[1733649579835,0.40973869,99316.0,99315.0,0.08899279]
[1733649580847,0.40973866,99316.0,99315.0,0.08899279]
[1733649583438,0.40973866,99316.0,99315.0,0.08922039]
[1733649583641,0.40973866,99316.0,99315.0,0.08899279]
[1733649584039,0.3608,99316.0,99315.0,0.08899279]
[1733649584744,0.3608,99316.0,99315.0,0.08922039]
[1733649584946,0.3608,99316.0,99315.0,0.08899279]
[1733649585741,0.3608,99316.0,99315.0,0.07775376]
[1733649586652,0.40608,99316.0,99315.0,0.03247376]
[1733649586858,0.46501898,99316.0,99315.0,0.03247376]
[1733649587241,0.71973898,99316.0,99291.0,0.00151071]
[1733649587447,0.16550731,99298.0,99297.0,0.045288]
[1733649587755,0.16550731,99298.0,99297.0,0.05779322]
[1733649588152,0.045288,99298.0,99297.0,0.05779322]
[1733649589748,0.053288,99298.0,99297.0,0.05879322]
[1733649589949,0.053288,99298.0,99297.0,0.05879846]
[1733649590446,0.058288,99298.0,99297.0,0.05879846]
[1733649592049,0.10723409,99298.0,99297.0,0.05879846]
[1733649593353,0.10723409,99298.0,99297.0,0.046288]
[1733649593571,0.10723409,99298.0,99297.0,0.05880766]
[1733649594758,0.10323409,99298.0,99297.0,0.05880766]
[1733649595154,0.10323409,99298.0,99297.0,0.05780766]
[1733649595155,0.09823409,99298.0,99297.0,0.05780766]
[1733649595455,0.097234,99298.0,99297.0,0.06410155]
[1733649595661,0.095234,99298.0,99297.0,0.06410155]
[1733649595956,0.098234,99298.0,99297.0,0.06410155]
[1733649596855,0.098234,99298.0,99297.0,0.05780908]
[1733649597052,0.098234,99298.0,99297.0,0.06410297]
[1733649597353,0.052946,99298.0,99297.0,0.06913808]
[1733649597555,0.004,99298.0,99297.0,0.06913808]
[1733649598049,0.003,99298.0,99297.0,0.06913808]
[1733649598351,0.004,99298.0,99297.0,0.06913808]
[1733649599053,0.12431181,99298.0,99297.0,0.06913808]
[1733649599262,0.12431181,99298.0,99297.0,0.07228481]
[1733649599851,0.004,99298.0,99297.0,0.07228481]
[1733649600150,0.12031181,99299.0,99297.0,0.07228481]
[1733649600151,0.10165534,99299.0,99298.0,0.045288]
[1733649600463,0.10165534,99299.0,99298.0,0.07228555]
[1733649600648,0.3608,99303.0,99302.0,0.045286]
[1733649600854,0.3608,99303.0,99302.0,0.07228355]
[1733649601258,0.15038888,99306.0,99305.0,0.045285]
[1733649601563,0.15038888,99306.0,99305.0,0.07228255]
[1733649602058,0.15038888,99307.0,99306.0,0.045285]
[1733649602262,0.15038888,99307.0,99306.0,0.07228255]
[1733649602449,0.15038888,99312.0,99309.0,0.045283]
[1733649602649,0.15040461,99312.0,99310.0,0.02699879]
[1733649602852,0.15040461,99313.0,99312.0,0.045282]
[1733649603068,0.15040461,99313.0,99312.0,0.07228079]
[1733649604159,0.15040461,99314.0,99312.0,0.02699879]
[1733649604471,0.15040461,99314.0,99313.0,0.07227979]
[1733649605553,0.15540461,99314.0,99313.0,0.07327979]
[1733649606759,0.15940461,99314.0,99313.0,0.07327979]
[1733649607155,0.16081407,99314.0,99313.0,0.07327979]
[1733649607362,0.20975269,99314.0,99313.0,0.07327979]
[1733649607657,0.05793862,99314.0,99313.0,0.07327979]
[1733649610664,0.05793515,99314.0,99313.0,0.07327979]
[1733649613068,0.05793611,99314.0,99313.0,0.07327979]
[1733649614171,0.009,99314.0,99313.0,0.07327979]
[1733649614561,0.054281,99314.0,99313.0,0.07327979]
[1733649616173,0.054281,99314.0,99313.0,0.01547496]
[1733649616174,0.10322094,99314.0,99313.0,0.01547496]
[1733649616563,0.23469546,99314.0,99313.0,0.01547496]
[1733649616868,0.2836354,99314.0,99313.0,0.01547496]
[1733649617463,0.3140354,99314.0,99313.0,0.01547496]
[1733649618063,0.13362094,99314.0,99313.0,0.01547496]
[1733649618469,0.26509103,99314.0,99313.0,0.01547496]
[1733649618665,0.31403097,99314.0,99313.0,0.01547496]
[1733649619765,0.3140774,99314.0,99313.0,0.01547496]
[1733649620471,0.13362094,99314.0,99313.0,0.01547496]
[1733649621370,0.31408747,99314.0,99313.0,0.01547496]
[1733649621775,0.13362094,99314.0,99313.0,0.01570305]
[1733649622171,0.13362094,99314.0,99313.0,0.01547496]
[1733649622569,0.084681,99314.0,99313.0,0.01547496]
[1733649622870,0.084681,99314.0,99313.0,0.01570323]
[1733649622871,0.28406501,99314.0,99313.0,0.01570323]
[1733649623269,0.28406501,99314.0,99313.0,0.01547496]
[1733649623465,0.28406501,99314.0,99313.0,0.01232814]
[1733649623779,0.28406501,99314.0,99313.0,0.01547484]
[1733649625373,0.28406501,99314.0,99313.0,0.00040905]
[1733649626477,0.28406501,99314.0,99311.0,0.045282]
[1733649626478,0.045282,99312.0,99311.0,0.045282]
[1733649627073,0.24466601,99312.0,99311.0,0.045282]
[1733649627786,0.25066601,99312.0,99311.0,0.046282]
[1733649628478,0.25466601,99312.0,99311.0,0.046282]
[1733649628678,0.10422427,99312.0,99311.0,0.046282]
[1733649629871,0.10422427,99312.0,99311.0,0.001]
[1733649630277,0.25394372,99312.0,99311.0,0.001]
[1733649630478,0.26377805,99312.0,99311.0,0.001]
[1733649631276,0.62457805,99312.0,99311.0,0.001]
[1733649632386,0.62297256,99312.0,99311.0,0.001]
[1733649632886,0.62297256,99312.0,99302.0,0.00022836]
[1733649633078,0.045286,99302.0,99301.0,0.00022836]
[1733649633275,0.27480066,99302.0,99301.0,0.00652252]
[1733649633477,0.27480066,99302.0,99301.0,0.00629416]
[1733649633675,0.09423376,99302.0,99301.0,0.00629416]
[1733649634380,0.09923376,99302.0,99301.0,0.00629416]
[1733649635185,0.2797543,99302.0,99301.0,0.00629416]
[1733649635381,0.2797543,99302.0,99301.0,0.01132959]
[1733649635580,0.09923376,99302.0,99301.0,0.01132959]
[1733649636184,0.10123376,99302.0,99301.0,0.01132959]
[1733649636784,0.10123376,99302.0,99301.0,0.00503543]
[1733649636785,0.1125704,99302.0,99301.0,0.00503543]
[1733649636980,0.1125704,99302.0,99301.0,0.01155782]
[1733649637185,0.11257149,99302.0,99301.0,0.01155782]
[1733649637378,0.11257149,99302.0,99301.0,0.01470494]
[1733649638181,0.11257149,99302.0,99301.0,0.01447677]
[1733649639181,0.29309203,99302.0,99301.0,0.01447677]
[1733649641085,0.65389203,99302.0,99301.0,0.01447677]
[1733649642075,0.47337167,99302.0,99301.0,0.01447677]
[1733649643676,0.045291,99292.0,99291.0,0.045291]
[1733649643884,0.045293,99288.0,99287.0,0.01084919]
[1733649644090,0.045293,99288.0,99287.0,0.02706545]
[1733649644287,0.02263346,99288.0,99287.0,0.02706545]
[1733649644484,0.02263346,99288.0,99287.0,0.07235845]
[1733649644885,0.17318708,99288.0,99287.0,0.02706545]
[1733649645185,0.17318708,99288.0,99287.0,0.01447686]
[1733649645186,0.07158453,99288.0,99287.0,0.01447686]
[1733649645394,0.25224888,99288.0,99287.0,0.01447686]
[1733649645789,0.07158453,99288.0,99287.0,0.01547686]
[1733649646289,0.07158453,99288.0,99287.0,0.0157053]
[1733649646481,0.07158453,99288.0,99287.0,0.01547686]
[1733649646482,0.2184244,99288.0,99287.0,0.01547686]
[1733649646678,0.2183228,99288.0,99287.0,0.01547686]
[1733649647278,0.2183228,99288.0,99283.0,0.00022844]
[1733649647483,0.045295,99283.0,99281.0,0.06362844]
[1733649647785,0.3608,99284.0,99281.0,0.00022844]
[1733649647786,0.09424975,99282.0,99281.0,0.00022844]
[1733649648094,0.045302,99268.0,99262.0,0.00063]
[1733649648389,0.766902,99268.0,99262.0,0.00063]
[1733649648582,0.95961714,99268.0,99262.0,0.00063]
[1733649649193,0.81585675,99268.0,99262.0,0.00063]
[1733649650187,0.99621063,99268.0,99262.0,0.00063]
[1733649650394,0.99621063,99268.0,99267.0,0.00112265]
[1733649650588,0.81585675,99268.0,99267.0,0.00112265]
[1733649650790,0.81585675,99268.0,99267.0,0.00312265]
[1733649651193,0.82686381,99268.0,99267.0,0.00312265]
[1733649652383,0.77790906,99268.0,99267.0,0.00312265]
[1733649652789,0.92808869,99268.0,99267.0,0.00312265]
[1733649653197,0.77790906,99268.0,99267.0,0.00312265]
[1733649653891,0.766902,99268.0,99267.0,0.00312265]
[1733649654083,0.406102,99268.0,99267.0,0.00312265]
[1733649655391,0.406102,99268.0,99267.0,0.00941902]
[1733649657297,0.406102,99268.0,99267.0,0.01445594]
[1733649659403,0.406102,99268.0,99267.0,0.01760405]
[1733649660704,0.406102,99268.0,99267.0,0.01760414]
[1733649661990,0.52617226,99268.0,99267.0,0.01760414]
[1733649662190,0.52617397,99268.0,99267.0,0.01760414]
[1733649662411,0.52617397,99268.0,99267.0,1.4e-07]
[1733649662701,0.46507308,99268.0,99252.0,0.00022773]
[1733649662907,0.3608,99253.0,99250.0,0.00022773]
[1733649663100,0.04531,99250.0,99246.0,0.05642991]
[1733649663499,0.04531,99250.0,99249.0,0.04480552]
[1733649664992,0.04631,99250.0,99249.0,0.05380552]
[1733649666098,0.04631,99250.0,99249.0,0.05780564]
[1733649670496,0.04631,99250.0,99249.0,0.06410285]
[1733649672499,0.04631,99250.0,99249.0,0.06914061]
[1733649672698,0.04631,99250.0,99249.0,0.05654616]
[1733649674105,0.16635233,99250.0,99249.0,0.05654616]
[1733649674505,0.16635233,99250.0,99249.0,0.05969479]
[1733649675103,0.04631,99250.0,99249.0,0.05969479]
[1733649676309,0.40711,99250.0,99249.0,0.02759479]
[1733649676699,0.45608562,99250.0,99249.0,0.02759479]
[1733649676907,0.59788705,99250.0,99249.0,0.02759479]
[1733649677103,0.59788705,99250.0,99249.0,0.00230402]
[1733649677506,0.59688705,99250.0,99249.0,0.00730402]
[1733649678313,0.59688705,99250.0,99249.0,0.00930402]
[1733649679507,0.59688705,99250.0,99249.0,0.007]
[1733649681612,0.45508562,99250.0,99239.0,0.00022835]
[1733649681815,0.406115,99240.0,99238.0,0.00022835]
[1733649682013,0.045316,99238.0,99237.0,7.913e-05]
[1733649682413,0.16190037,99238.0,99237.0,1.3e-07]
[1733649682616,0.04532,99228.0,99227.0,0.00146841]
[1733649682914,0.40612,99228.0,99227.0,0.00124]
[1733649683215,0.45510437,99228.0,99227.0,0.00124]
[1733649683917,0.45510437,99228.0,99227.0,0.00224]
[1733649683918,0.46110437,99228.0,99227.0,0.00224]
[1733649684313,0.77292,99228.0,99227.0,0.00224]
[1733649684513,0.92310847,99228.0,99227.0,0.00224]
[1733649685216,0.92310847,99228.0,99227.0,0.00853932]
[1733649685217,0.92610847,99228.0,99227.0,0.00853932]
[1733649685415,0.77592,99228.0,99227.0,0.00853932]
[1733649685920,0.78662638,99228.0,99227.0,0.00853932]
[1733649686310,0.78662638,99228.0,99227.0,0.00729932]
[1733649687214,0.78662638,99228.0,99227.0,0.01233878]
[1733649687911,0.78662638,99228.0,99227.0,7.8e-07]
[1733649688110,0.83561586,99228.0,99227.0,7.8e-07]
[1733649688305,0.83561769,99228.0,99227.0,7.8e-07]
[1733649688505,0.045325,99218.0,99217.0,7.318e-05]
[1733649688714,0.045325,99218.0,99217.0,0.00030112]
[1733649688715,0.406125,99218.0,99217.0,0.00030112]
[1733649689112,0.406125,99218.0,99217.0,0.00322303]
[1733649689313,0.406125,99218.0,99217.0,0.00345097]
[1733649689716,0.406125,99218.0,99217.0,0.00345095]
[1733649689915,0.409125,99218.0,99217.0,0.00322304]
[1733649690717,0.410125,99218.0,99217.0,0.00322304]
[1733649691016,0.42125111,99218.0,99217.0,0.00322304]
[1733649691420,0.54126678,99218.0,99217.0,0.00322304]
[1733649691609,0.42125111,99218.0,99217.0,0.00322304]
[1733649692712,0.42125111,99218.0,99217.0,4e-08]
[1733649693110,0.5712707,99218.0,99217.0,4e-08]
[1733649693308,0.5712707,99218.0,99205.0,0.00022791]
[1733649693309,0.04533,99206.0,99205.0,0.00022791]
[1733649693512,0.04533,99206.0,99205.0,0.04555905]
[1733649693712,0.04533,99206.0,99201.0,0.0649]
[1733649693713,0.045332,99203.0,99202.0,7.37e-05]
[1733649693922,0.045332,99203.0,99202.0,0.01267367]
[1733649695313,0.045332,99203.0,99202.0,0.01467367]
[1733649695719,0.045332,99203.0,99202.0,0.01667367]
[1733649695913,0.045332,99203.0,99202.0,0.06830559]
[1733649696319,0.045332,99203.0,99202.0,0.05570562]
[1733649696524,0.045332,99203.0,99202.0,0.06830534]
[1733649697813,0.3608,99208.0,99207.0,0.04533]
[1733649698009,0.3608,99208.0,99207.0,0.06926945]
[1733649698216,0.406129,99208.0,99207.0,0.06926945]
[1733649699423,0.406129,99208.0,99207.0,0.07126945]
[1733649699814,0.406129,99208.0,99207.0,0.07126917]
[1733649700019,0.406129,99208.0,99207.0,0.07226893]
[1733649701520,0.354129,99208.0,99207.0,0.07226893]
[1733649702230,0.045326,99215.0,99214.0,0.045327]
[1733649702529,0.045326,99215.0,99214.0,0.05666649]
[1733649703027,0.045326,99215.0,99214.0,0.045327]
[1733649703230,0.045326,99215.0,99214.0,0.05666585]
[1733649703630,0.045326,99215.0,99214.0,0.045327]
[1733649703830,0.045326,99215.0,99214.0,0.05666583]
[1733649704530,0.09093959,99215.0,99214.0,0.05666583]
[1733649704727,0.001,99215.0,99214.0,0.07241404]
[1733649705620,0.046326,99215.0,99214.0,0.07241404]
[1733649708327,0.02364976,99215.0,99214.0,0.07241404]
[1733649709628,0.11358935,99215.0,99214.0,0.07241404]
[1733649709828,0.02364976,99215.0,99214.0,0.07241404]
[1733649710039,0.11358935,99215.0,99214.0,0.07241404]
[1733649710427,0.02364976,99215.0,99214.0,0.07241404]
[1733649710626,0.09020629,99215.0,99214.0,0.07241404]
[1733649710828,0.09020629,99216.0,99214.0,0.02708704]
[1733649711029,0.09020902,99222.0,99219.0,0.045324]
[1733649711231,0.09020902,99226.0,99225.0,0.045322]
[1733649711430,0.09020902,99226.0,99225.0,0.07240904]
[1733649711431,0.09022166,99226.0,99225.0,0.07240904]
[1733649711737,0.09022166,99226.0,99225.0,0.08330376]
[1733649712138,0.09022166,99227.0,99226.0,0.045321]
[1733649712333,0.11991945,99232.0,99231.0,0.045319]
[1733649712536,0.11991945,99232.0,99231.0,0.07240604]
[1733649713236,0.11991945,99232.0,99231.0,0.07240347]
[1733649713440,0.045317,99236.0,99232.0,0.045318]
[1733649713441,0.11991945,99233.0,99232.0,0.045318]
[1733649713647,0.11991945,99233.0,99232.0,0.10390247]
[1733649714441,0.045317,99236.0,99232.0,0.10390247]
[1733649714442,0.11991945,99234.0,99233.0,0.045318]
[1733649714633,0.11991945,99234.0,99233.0,0.05980641]
[1733649714942,0.09017765,99237.0,99236.0,0.045316]
[1733649715237,0.09017765,99241.0,99240.0,0.045315]
[1733649715536,0.3608,99250.0,99243.0,0.045313]
[1733649715537,0.09017765,99244.0,99243.0,0.045313]
[1733649715743,0.09017765,99244.0,99243.0,0.07239738]
[1733649716439,0.09017765,99246.0,99245.0,0.045312]
[1733649716742,0.09017765,99246.0,99245.0,0.07239498]
[1733649717441,0.52670945,99250.0,99245.0,0.07239498]
[1733649717442,0.09017765,99247.0,99246.0,0.045312]
[1733649717737,0.09017765,99247.0,99246.0,0.05980041]
[1733649718347,0.09017765,99248.0,99247.0,0.045311]
[1733649718532,0.10017765,99248.0,99247.0,0.05979941]
[1733649719445,0.01,99248.0,99247.0,0.05979941]
[1733649719642,0.01,99248.0,99247.0,0.0723932]
[1733649719943,0.13704878,99248.0,99247.0,0.0733932]
[1733649720243,0.13704878,99248.0,99247.0,0.07338759]
[1733649720538,0.14604878,99248.0,99247.0,0.07338759]
[1733649721238,0.017,99248.0,99247.0,0.07338759]
[1733649721634,0.01,99248.0,99247.0,0.07238759]
[1733649722938,0.01,99248.0,99247.0,0.07238768]
[1733649725635,0.12004878,99250.0,99247.0,0.02707668]
[1733649725837,0.12004878,99250.0,99249.0,0.045311]
[1733649726043,0.00010685,99251.0,99249.0,0.02707668]
[1733649726044,0.12015563,99251.0,99249.0,0.02707668]
[1733649726341,0.12015563,99251.0,99238.0,0.045316]
[1733649726342,0.00010685,99251.0,99250.0,0.07238668]
[1733649726534,0.00010685,99251.0,99250.0,0.07238677]
[1733649727142,0.0322,99268.0,99267.0,0.045302]
[1733649727347,0.0322,99268.0,99267.0,0.05978496]
[1733649728657,0.0412,99268.0,99267.0,0.05978496]
[1733649729243,0.0452,99268.0,99267.0,0.05978266]
[1733649729846,0.013,99268.0,99267.0,0.05978266]
[1733649731343,0.058302,99268.0,99267.0,0.05978266]
[1733649732743,0.058302,99268.0,99267.0,0.045302]
[1733649732951,0.058302,99268.0,99267.0,0.07237433]
[1733649733250,0.058302,99268.0,99267.0,0.05978254]
[1733649733547,0.058302,99268.0,99267.0,0.07237434]
[1733649734649,0.10726364,99268.0,99267.0,0.00395541]
[1733649734845,0.10726364,99268.0,99267.0,0.04925741]
[1733649735342,0.10726364,99268.0,99267.0,0.045302]
[1733649737245,0.06196164,99268.0,99267.0,0.045302]
[1733649737647,0.06196164,99268.0,99267.0,0.04540168]
[1733649737947,0.16309534,99268.0,99267.0,0.04540168]
[1733649738339,0.013,99268.0,99267.0,0.04540168]
[1733649738949,0.013,99268.0,99267.0,0.11170168]
[1733649739349,0.04895887,99268.0,99267.0,0.77272969]
[1733649739543,0.045279,99319.0,99268.0,0.045302]
[1733649739743,0.045279,99319.0,99267.0,0.82793758]
[1733649739744,0.12017848,99303.0,99301.0,0.045287]
[1733649740046,0.12017848,99314.0,99300.0,0.81951788]
[1733649740240,0.12017848,99315.0,99313.0,0.406081]
[1733649740450,0.00012973,99320.0,99317.0,0.045279]
[1733649741144,0.11999263,99318.0,99317.0,0.045279]
[1733649741644,0.11999263,99319.0,99317.0,0.045279]
[1733649742352,0.00412973,99320.0,99317.0,0.045279]
[1733649742535,0.00412973,99320.0,99318.0,0.0062928]
[1733649742739,0.01012973,99320.0,99319.0,0.0062928]